bitfinex/quotes_SOLUSD_20240717
["timestamp","ask_amount","ask_price","bid_price","bid_amount"]
[1721201791570,1.55618498,160.67,160.6,6.2263]
[1721201791788,1.55618498,160.67,160.63,6.2251]
[1721201792090,1.55618498,160.67,160.62,6.2257]
[1721201792483,1.89618498,160.69,160.62,6.2257]
[1721201793286,6.2236,160.68,160.62,6.2257]
[1721201793588,1.55618498,160.67,160.63,6.2254]
[1721201794490,7.57388498,160.66,160.54,26.4262]
[1721201794684,13.79818498,160.66,160.54,26.4262]
[1721201794875,1.55618498,160.66,160.54,36.4262]
[1721201795096,7.78058498,160.66,160.59,6.2266]
[1721201795274,1.55618498,160.66,160.6,0.80468271]
[1721201795589,1.55618498,160.66,160.61,6.2258]
[1721201795790,7.78048498,160.66,160.6,6.2265]
[1721201795999,6.2239,160.67,160.61,7.47121015]
[1721201796302,1.55618498,160.66,160.62,6.2258]
[1721201797186,1.55618498,160.67,160.62,6.2258]
[1721201797389,1.55618498,160.69,160.63,0.43766211]
[1721201797589,7.7778782,160.72,160.66,6.2242]
[1721201798294,6.2223,160.71,160.65,6.2246]
[1721201798500,1.5558639,160.7,160.66,0.83856325]
[1721201798687,1.5558639,160.7,160.65,6.2246]
[1721201799681,6.2219,160.73,160.66,60.7994]
[1721201799880,7.77786416,160.72,160.66,67.0233]
[1721201800088,6.2227,160.71,160.66,15.7994]
[1721201800284,7.77861607,160.7,160.66,15.7994]
[1721201800592,6.5421,160.74,160.66,15.7994]
[1721201800593,1.55586952,160.73,160.66,15.7994]
[1721201800793,6.2232,160.69,160.63,6.2254]
[1721201801006,6.222,160.72,160.66,6.2242]
[1721201801193,7.77819908,160.71,160.66,6.2242]
[1721201801394,6.2224,160.71,160.65,6.2246]
[1721201801799,1.55580118,160.7,160.65,6.2246]
[1721201802386,14.89,160.68,160.64,45.0]
[1721201803027,14.89,160.68,160.63,45.0]
[1721201803195,14.89,160.68,160.64,6.2249]
[1721201803397,14.89,160.65,160.6,6.2265]
[1721201803588,14.89,160.64,160.6,6.2265]
[1721201804102,14.89,160.64,160.58,30.7647]
[1721201804103,14.89,160.65,160.61,6.2261]
[1721201804303,14.89,160.64,160.61,6.2261]
[1721201804487,14.89,160.64,160.58,30.7647]
[1721201804806,14.89,160.65,160.63,6.2254]
[1721201804995,14.89,160.66,160.63,6.2254]
[1721201805177,14.89,160.66,160.62,6.2257]
[1721201805378,14.89,160.65,160.63,6.2254]
[1721201806003,1.5561792,160.68,160.64,6.225]
[1721201806381,6.2232,160.69,160.64,6.225]
[1721201807295,1.55600557,160.71,160.65,6.2246]
[1721201807502,6.2232,160.69,160.6,0.17]
[1721201807699,1.55599573,160.68,160.6,45.34]
[1721201808012,1.55599573,160.68,160.63,6.2252]
[1721201808504,7.77959573,160.68,160.61,20.0]
[1721201808704,6.2236,160.68,160.62,51.2257]
[1721201808887,7.77996365,160.67,160.62,51.2257]
[1721201809086,6.2239,160.67,160.62,51.2257]
[1721201809291,1.55615074,160.66,160.62,6.2257]
[1721201809492,6.2236,160.68,160.63,6.2254]
[1721201809696,1.55618498,160.71,160.64,6.2247]
[1721201809897,1.55601241,160.7,160.64,6.2247]
[1721201810090,6.2232,160.69,160.63,6.2253]
[1721201810304,1.55603566,160.68,160.63,6.2253]
[1721201810492,7.77983566,160.68,160.62,6.2257]
[1721201810815,1.55603566,160.68,160.63,6.2251]
[1721201811121,6.2236,160.68,160.62,6.2258]
[1721201811300,7.78008498,160.67,160.62,6.2258]
[1721201811499,7.77888498,160.71,160.61,20.0]
[1721201811803,6.2233,160.69,160.63,6.2254]
[1721201812109,30.13,160.72,160.62,6.2258]
[1721201812110,7.77985301,160.68,160.62,6.2258]
[1721201812306,1.55618498,160.67,160.62,6.2258]
[1721201813001,1.55618498,160.67,160.63,6.2254]
[1721201813206,7.77968498,160.68,160.63,6.2254]
[1721201813408,1.55618498,160.67,160.62,6.2257]
[1721201813804,1.55618498,160.67,160.63,6.2253]
[1721201814115,7.77868498,160.71,160.65,6.2246]
[1721201814292,1.5560382,160.7,160.65,6.2246]
[1721201814489,1.55599701,160.71,160.67,6.2239]
[1721201814693,6.5421,160.74,160.64,16.1134]
[1721201814694,1.55581212,160.73,160.64,16.1134]
[1721201814890,6.2222,160.72,160.66,6.2242]
[1721201815095,6.2222,160.72,160.67,6.2239]
[1721201815096,1.55584625,160.71,160.67,6.2239]
[1721201815396,1.55584625,160.7,160.67,6.2239]
[1721201815702,1.55584635,160.72,160.68,6.2235]
[1721201816204,1.55574313,160.73,160.69,6.223]
[1721201816408,1.55554835,160.74,160.69,6.223]
[1721201816617,1.55554835,160.74,160.7,7.09544352]
[1721201816818,1.55554835,160.74,160.7,6.2227]
[1721201817194,6.2212,160.75,160.7,6.2227]
[1721201817596,1.55540084,160.74,160.69,6.223]
[1721201818596,7.77670084,160.74,160.68,6.2234]
[1721201818818,6.2213,160.74,160.69,45.0]
[1721201820022,6.2208,160.75,160.69,51.223]
[1721201820516,6.2216,160.73,160.64,16.1134]
[1721201820708,6.2216,160.73,160.67,6.2238]
[1721201820905,1.55555912,160.72,160.67,6.2238]
[1721201821101,6.2216,160.73,160.67,6.2238]
[1721201821296,1.55556155,160.72,160.65,45.0]
[1721201821498,6.2227,160.71,160.66,20.0]
[1721201821697,1.55581124,160.7,160.66,20.0]
[1721201822103,6.2219,160.73,160.66,20.0]
[1721201822297,6.2223,160.71,160.66,20.0]
[1721201822517,1.55581121,160.7,160.66,20.0]
[1721201822691,1.55581121,160.7,160.65,6.2244]
[1721201823620,1.55581121,160.7,160.64,16.1134]
[1721201823621,1.55596655,160.69,160.64,16.1134]
[1721201823798,1.55596655,160.69,160.6,15.7803]
[1721201824003,1.55596655,160.69,160.61,6.2259]
[1721201824321,1.55596655,160.69,160.6,22.0069]
[1721201824322,6.2243,160.66,160.6,22.0069]
[1721201824503,1.55618498,160.65,160.6,22.0069]
[1721201824823,1.55618498,160.65,160.6,15.7803]
[1721201825010,1.55618498,160.69,160.6,15.7803]
[1721201825210,0.34,160.68,160.6,15.7803]
[1721201825633,29.79,160.7,160.6,15.7803]
[1721201825939,0.34,160.69,160.6,15.7803]
[1721201826110,36.0131,160.7,160.63,6.2251]
[1721201826513,7.77938498,160.69,160.63,6.2251]
[1721201826827,1.55618498,160.69,160.64,6.2249]
[1721201827199,7.77938498,160.69,160.63,6.2254]
[1721201827506,1.55618498,160.69,160.64,6.225]
[1721201827916,1.55618498,160.69,160.6,15.7803]
[1721201828218,1.55618498,160.69,160.61,45.0]
[1721201828522,6.2235,160.68,160.63,6.2254]
[1721201828706,1.55605654,160.67,160.63,6.2254]
[1721201828906,1.55605535,160.68,160.64,6.2249]
[1721201829421,6.2236,160.68,160.63,6.2254]
[1721201829595,7.77924125,160.69,160.63,6.2254]
[1721201829801,7.77924125,160.69,160.64,6.225]
[1721201830019,6.2236,160.68,160.61,45.0]
[1721201830324,1.55595839,160.67,160.62,6.2258]
[1721201830918,7.77995839,160.67,160.62,6.2258]
[1721201831123,6.224,160.67,160.62,6.2258]
[1721201831926,6.224,160.67,160.61,45.0]
[1721201832219,6.224,160.67,160.61,51.2261]
[1721201833005,1.55614072,160.66,160.61,51.2261]
[1721201833727,6.2247,160.65,160.6,15.7803]
[1721201833929,1.55618498,160.64,160.6,15.7803]
[1721201834424,6.2243,160.66,160.6,22.0068]
[1721201834627,6.2242,160.67,160.61,6.2262]
[1721201834824,7.78048498,160.66,160.6,15.7803]
[1721201835030,1.55618498,160.65,160.6,15.7803]
[1721201835204,6.2243,160.66,160.6,15.7803]
[1721201835401,1.55618498,160.65,160.6,15.7803]
[1721201835606,7.78098498,160.65,160.59,6.2266]
[1721201835912,1.55618498,160.64,160.59,6.2266]
[1721201836113,7.78138498,160.64,160.58,6.2273]
[1721201836313,1.55618498,160.63,160.58,6.2273]
[1721201836812,6.2252,160.64,160.58,6.2273]
[1721201837015,6.2255,160.63,160.58,6.2273]
[1721201837406,6.2255,160.63,160.57,6.2277]
[1721201837802,6.3979,160.59,160.51,263.1]
[1721201838049,6.3979,160.59,160.55,6.2282]
[1721201838711,6.3979,160.59,160.55,6.2284]
[1721201839320,6.3979,160.59,160.55,6.2285]
[1721201839522,1.55618498,160.58,160.55,6.2285]
[1721201839737,7.95408498,160.59,160.55,6.2285]
[1721201840039,7.95408498,160.59,160.56,6.2281]
[1721201840212,6.3979,160.59,160.48,27.4522713]
[1721201840411,6.3979,160.59,160.49,20.0]
[1721201840633,6.3979,160.59,160.56,6.2278]
[1721201840934,1.55618498,160.63,160.58,6.2273]
[1721201841426,1.55618498,160.63,160.55,15.9388]
[1721201841636,1.55618498,160.63,160.59,6.227]
[1721201841813,1.55618498,160.63,160.58,6.2273]
[1721201842412,1.55618498,160.63,160.59,6.227]
[1721201842744,6.3878,160.64,160.6,6.2266]
[1721201843417,6.3878,160.64,160.59,6.2269]
[1721201843735,1.55618498,160.65,160.6,6.2265]
[1721201843910,1.55618498,160.66,160.6,6.2265]
[1721201844106,1.55618498,160.66,160.57,10.0]
[1721201844307,7.891947,160.68,160.63,6.2254]
[1721201844513,7.78002739,160.67,160.61,6.2262]
[1721201844711,6.2246,160.66,160.59,6.2269]
[1721201844931,1.55618498,160.65,160.6,65.0]
[1721201845128,6.2247,160.65,160.6,20.0]
[1721201845434,1.55618498,160.64,160.6,20.0]
[1721201845636,1.55618498,160.64,160.59,6.227]
[1721201845817,1.55618498,160.64,160.6,6.2265]
[1721201846020,1.55618498,160.66,160.56,45.0]
[1721201846215,1.55618498,160.66,160.62,6.2255]
[1721201846623,1.55618498,160.66,160.61,6.2261]
[1721201847109,1.55618498,160.66,160.62,6.2257]
[1721201847320,12.5593,160.68,160.59,10.0]
[1721201847321,7.89195905,160.68,160.59,10.0]
[1721201847534,7.89195905,160.68,160.6,65.0]
[1721201847722,7.8919272,160.68,160.6,65.0]
[1721201848121,1.55612535,160.67,160.6,65.0]
[1721201848839,7.89192728,160.68,160.6,65.0]
[1721201849223,6.3358,160.68,160.64,6.2249]
[1721201849744,6.3358,160.68,160.65,6.2246]
[1721201850846,1.55597057,160.7,160.65,6.2246]
[1721201851023,1.55577375,160.7,160.62,15.774]
[1721201851227,1.55577375,160.7,160.63,45.0]
[1721201851435,1.55583791,160.71,160.66,6.2243]
[1721201852235,7.77813791,160.71,160.66,6.2243]
[1721201852538,1.55577176,160.7,160.65,6.2246]
[1721201853934,1.55577176,160.7,160.54,15.5501]
[1721201853935,6.2272,160.59,160.54,15.5501]
[1721201854135,1.55618498,160.65,160.54,15.5501]
[1721201854330,14.91,160.62,160.56,21.1378]
[1721201854642,16.46618498,160.62,160.56,21.1378]
[1721201855027,14.91,160.61,160.56,6.2278]
[1721201856129,14.91,160.61,160.56,21.1378]
[1721201856330,6.2259,160.62,160.56,6.2278]
[1721201859045,1.55618498,160.61,160.56,6.2278]
[1721201859243,1.55618498,160.6,160.54,15.5501]
[1721201859428,6.2268,160.6,160.55,20.0]
[1721201860237,7.78248498,160.61,160.55,26.2285]
[1721201860749,1.55618498,160.61,160.55,20.0]
[1721201860952,8.21708498,160.62,160.55,20.0]
[1721201861831,6.2267,160.6,160.55,20.0]
[1721201862031,7.78328498,160.59,160.54,6.2289]
[1721201862244,1.55618498,160.58,160.54,6.2289]
[1721201862427,6.2271,160.59,160.54,6.2289]
[1721201862642,6.2266,160.6,160.54,6.2289]
[1721201862841,1.55618498,160.59,160.54,6.2289]
[1721201863046,7.78318498,160.59,160.54,6.2289]
[1721201863253,6.2267,160.6,160.54,6.2289]
[1721201863452,1.55618498,160.59,160.54,6.2289]
[1721201863751,1.55618498,160.59,160.55,6.2285]
[1721201863960,1.55618498,160.6,160.56,6.2281]
[1721201865329,12.8868,160.62,160.56,6.2281]
[1721201865532,1.55618498,160.61,160.5,32.4201]
[1721201865732,6.6609,160.62,160.53,10.0]
[1721201865931,1.55618498,160.63,160.54,65.34]
[1721201866165,1.55618498,160.63,160.59,6.2267]
[1721201866337,7.78118498,160.65,160.59,6.2269]
[1721201866536,1.55618498,160.64,160.59,6.2269]
[1721201868069,1.55618498,160.64,160.6,6.2265]
[1721201868641,1.55618498,160.65,160.61,6.2261]
[1721201869262,1.55618498,160.65,160.6,6.2265]
[1721201870237,12.2613,160.66,160.6,6.2265]
[1721201870577,6.2243,160.66,160.6,6.2265]
[1721201871961,6.2248,160.65,160.6,6.2265]
[1721201872366,1.55618498,160.68,160.58,16.0754]
[1721201872577,6.2251,160.64,160.59,45.0]
[1721201872855,1.55618498,160.67,160.59,45.0]
[1721201873082,6.2244,160.66,160.59,45.0]
[1721201873263,6.2251,160.64,160.59,45.0]
[1721201874249,6.2248,160.65,160.59,51.227]
[1721201874650,1.55618498,160.64,160.58,22.3027]
[1721201874842,1.55618498,160.68,160.58,22.3027]
[1721201875164,1.89618498,160.67,160.59,6.2268]
[1721201875346,6.2255,160.63,160.58,16.0754]
[1721201875549,1.55618498,160.67,160.58,22.3028]
[1721201875550,6.2251,160.64,160.58,22.3028]
[1721201875872,6.2251,160.64,160.59,6.2269]
[1721201876542,6.2248,160.65,160.6,6.2266]
[1721201876741,1.55618498,160.64,160.6,6.2266]
[1721201876939,1.55618498,160.64,160.59,6.227]
[1721201877641,6.2243,160.67,160.61,6.2261]
[1721201877840,1.55618498,160.66,160.61,6.2261]
[1721201878036,1.55618498,160.66,160.58,16.0754]
[1721201878367,16.45618498,160.67,160.62,6.2255]
[1721201878664,1.55618498,160.67,160.63,6.2254]
[1721201878863,1.55618498,160.67,160.62,21.1257]
[1721201879071,16.45618498,160.67,160.62,21.1257]
[1721201879750,16.45618498,160.67,160.63,6.2253]
[1721201879933,1.55609085,160.68,160.64,6.2249]
[1721201880135,7.77881895,160.7,160.65,22.36931516]
[1721201880363,7.77881895,160.7,160.64,6.225]
[1721201880364,6.2228,160.7,160.64,6.225]
[1721201880572,1.55591976,160.69,160.64,6.225]
[1721201880738,7.77911976,160.69,160.64,6.225]
[1721201880937,6.2232,160.69,160.64,6.225]
[1721201881161,6.2228,160.7,160.64,6.225]
[1721201881366,1.55596116,160.73,160.65,6.2245]
[1721201881367,6.2224,160.71,160.65,6.2245]
[1721201881563,1.55584441,160.7,160.65,6.2245]
[1721201881755,7.77854441,160.7,160.65,6.2245]
[1721201881966,6.49545783,160.77,160.66,32.5389]
[1721201882178,1.5558716,160.79,160.75,6.2208]
[1721201882483,1.55497917,160.79,160.74,6.2209]
[1721201882788,6.6561,160.8,160.74,6.2209]
[1721201883099,1.55487498,160.8,160.75,6.2206]
[1721201883291,1.55487498,160.8,160.75,6.2207]
[1721201884183,1.55487498,160.8,160.74,6.2211]
[1721201884359,6.5719,160.84,160.69,29.78]
[1721201884672,0.17,160.83,160.7,65.34]
[1721201885383,6.2189,160.8,160.74,6.2211]
[1721201885767,7.77307255,160.82,160.76,6.2204]
[1721201885969,1.55487255,160.82,160.74,6.2209]
[1721201886282,6.2192,160.79,160.74,6.2209]
[1721201886475,6.2188,160.81,160.75,6.2207]
[1721201886681,1.55487248,160.8,160.75,6.2207]
[1721201887056,6.2188,160.81,160.75,6.2207]
[1721201888685,6.219,160.8,160.74,21.9875]
[1721201889578,6.219,160.8,160.75,6.2207]
[1721201889782,6.219,160.8,160.76,0.95373559]
[1721201890288,6.219,160.8,160.74,15.7664]
[1721201890471,6.2193,160.79,160.74,21.9875]
[1721201891087,6.2185,160.81,160.75,6.2207]
[1721201891309,276.84,160.97,160.7,75.34]
[1721201891310,2.39501367,160.94,160.81,16.081]
[1721201891590,15.5354,160.93,160.81,16.081]
[1721201891775,6.2158,160.88,160.81,16.081]
[1721201891975,6.2154,160.89,160.83,6.2177]
[1721201892171,7.77002555,160.88,160.81,16.081]
[1721201892373,6.2159,160.88,160.82,45.0]
[1721201892682,6.2159,160.88,160.82,51.2179]
[1721201893115,6.2159,160.88,160.83,0.3748811]
[1721201893390,6.2162,160.87,160.83,0.3748811]
[1721201893797,6.2158,160.88,160.83,6.5925811]
[1721201894471,1.55412536,160.92,160.84,6.2173]
[1721201894667,6.2151,160.9,160.85,6.2169]
[1721201894884,1.55398577,160.89,160.84,7.46047332]
[1721201895196,1.5539706,160.89,160.85,6.2169]
[1721201895367,6.2151,160.9,160.85,6.2169]
[1721201895673,1.5540025,160.92,160.87,6.2158]
[1721201895878,7.7683025,160.92,160.83,29.78]
[1721201896087,7.7683025,160.92,160.84,65.0]
[1721201896666,6.2152,160.9,160.84,65.0]
[1721201896864,6.2147,160.91,160.85,6.2168]
[1721201897068,6.2142,160.93,160.86,6.2165]
[1721201897370,7.76812128,160.92,160.87,6.2161]
[1721201897699,2.39399934,160.94,160.88,6.2156]
[1721201897991,2.39399934,160.94,160.84,75.0]
[1721201897992,6.2141,160.93,160.84,75.0]
[1721201898167,6.2141,160.93,160.85,0.34]
[1721201898370,2.39399934,160.94,160.88,6.2157]
[1721201898371,8.60749934,160.94,160.88,6.2157]
[1721201898789,2.39399934,160.94,160.85,0.34]
[1721201898997,0.8401936,160.94,160.85,0.34]
[1721201899504,0.8401936,160.94,160.89,6.2153]
[1721201899676,8.6072568,160.94,160.88,6.2157]
[1721201900200,2.3937568,160.94,160.85,1.18420873]
[1721201900374,8.6072568,160.94,160.88,6.2157]
[1721201901079,6.2139,160.93,160.88,6.2157]
[1721201901406,8.6072568,160.94,160.88,6.2157]
[1721201902291,2.3937568,160.94,160.89,6.2153]
[1721201902496,0.8401936,160.94,160.89,6.2153]
[1721201903185,0.8401936,160.94,160.9,6.2149]
[1721201903378,0.8401936,160.94,160.84,75.0]
[1721201903612,0.8401936,160.94,160.92,6.2139]
[1721201903894,0.8401936,160.94,160.86,39.78]
[1721201904103,0.8401936,160.94,160.87,65.34]
[1721201904279,0.8401936,160.94,160.87,65.0]
[1721201904500,0.8401936,160.94,160.89,6.2153]
[1721201905583,0.8401936,160.94,160.9,6.2149]
[1721201906707,0.8401936,160.94,160.87,65.0]
[1721201906708,2.39364131,160.94,160.81,16.081]
[1721201906917,6.2146,160.92,160.81,16.081]
[1721201907080,1.55397012,160.91,160.87,6.2161]
[1721201908016,1.55397012,160.91,160.86,6.2164]
[1721201908216,1.55397012,160.91,160.81,26.081]
[1721201908217,6.2143,160.92,160.87,6.2161]
[1721201908388,6.2139,160.93,160.87,6.2161]
[1721201908591,1.55374231,160.92,160.87,6.2161]
[1721201909108,1.55374231,160.92,160.87,6.216]
[1721201909310,7.0535936,160.94,160.83,10.0]
[1721201909481,1.5536489,160.93,160.84,65.34]
[1721201910082,2.39382542,160.94,160.89,6.2152]
[1721201910283,0.8401936,160.94,160.89,6.2152]
[1721201910477,6.2139,160.93,160.88,6.2157]
[1721201910916,2.39378688,160.94,160.84,65.34]
[1721201911424,6.2139,160.93,160.87,6.2158]
[1721201912203,6.2139,160.93,160.88,6.2157]
[1721201912790,7.0536936,160.94,160.89,7.45816825]
[1721201912984,7.0536936,160.94,160.89,6.2153]
[1721201913412,7.0536936,160.94,160.88,6.2157]
[1721201913593,7.76738556,160.93,160.88,6.2157]
[1721201914288,6.2138,160.93,160.88,6.2157]
[1721201914605,2.39377916,160.94,160.89,7.4581687]
[1721201914779,2.39377916,160.94,160.9,1.24279182]
[1721201915415,0.8401936,160.94,160.9,7.45759182]
[1721201915598,0.8401936,160.94,160.9,6.2148]
[1721201916201,0.8401936,160.94,160.86,10.0]
[1721201916410,0.8401936,160.94,160.92,6.2141]
[1721201917426,0.8401936,160.94,160.91,6.2145]
[1721201918406,0.8401936,160.94,160.92,6.2141]
[1721201918794,0.8401936,160.94,160.93,1.241136]
[1721201919415,0.8401936,160.94,160.93,7.454936]
[1721201919632,0.8401936,160.94,160.93,6.2138]
[1721201920006,0.8401936,160.94,160.92,6.2141]
[1721201920231,0.8401936,160.94,160.93,51.2138]
[1721201920531,0.8401936,160.94,160.92,6.2139]
[1721201920740,0.8401936,160.94,160.93,6.2138]
[1721201921022,0.8401936,160.94,160.93,51.2138]
[1721201923395,0.8401936,160.94,160.93,71.2138]
[1721201924024,0.8401936,160.94,160.93,71.5538]
[1721201924208,0.8401936,160.94,160.93,87.042]
[1721201924402,0.8401936,160.94,160.93,86.872]
[1721201924612,0.8401936,160.94,160.93,116.822]
[1721201925136,1.55279594,161.06,160.99,6.2114]
[1721201925312,1.55279594,161.06,161.01,6.2105]
[1721201925618,1.55279594,161.06,160.94,20.0]
[1721201925619,7.76169594,161.06,160.94,10.0]
[1721201925817,7.76169594,161.06,161.0,6.2111]
[1721201926210,21.0393,161.05,161.0,21.0411]
[1721201926526,6.438,161.07,160.95,20.17]
[1721201926527,14.83,161.02,160.95,20.17]
[1721201926820,14.83,161.02,160.93,60.4882]
[1721201926821,16.38252748,161.04,160.99,14.83]
[1721201926994,1.55255411,161.03,160.99,21.0414]
[1721201927190,21.0392,161.05,160.99,21.0414]
[1721201927191,1.55259313,161.04,160.99,21.0414]
[1721201927410,22.59175651,161.05,160.99,21.0414]
[1721201927628,14.83,161.05,161.0,21.0411]
[1721201927834,6.2093,161.05,161.0,59.83]
[1721201928015,21.0393,161.05,161.0,59.83]
[1721201928695,6.2096,161.04,161.0,59.83]
[1721201929497,14.83,161.05,161.0,59.83]
[1721201929698,7.76175409,161.06,161.02,14.83]
[1721201929929,14.83,161.05,161.0,59.83]
[1721201930133,6.21,161.03,160.98,6.2118]
[1721201930312,6.21,161.03,160.98,21.0418]
[1721201930511,21.04,161.03,160.98,21.0418]
[1721201930714,21.04,161.03,160.98,14.83]
[1721201931035,7.7632116,161.02,160.98,14.83]
[1721201931199,1.55247753,161.06,160.99,45.0]
[1721201931400,14.83,161.03,160.99,51.2112]
[1721201931612,1.55247753,161.06,160.99,45.0]
[1721201931807,1.55247753,161.06,160.99,59.83]
[1721201932030,14.83,161.04,160.99,59.83]
[1721201932207,21.0396,161.04,160.99,45.0]
[1721201932405,21.0405,161.02,160.97,21.0422]
[1721201932607,14.83,161.01,160.97,6.2122]
[1721201932907,14.83,161.02,160.97,21.0422]
[1721201933109,21.0405,161.02,160.97,21.0422]
[1721201933413,14.83,161.01,160.97,6.2122]
[1721201933816,6.2097,161.04,160.98,6.2118]
[1721201934018,14.83,161.02,160.98,6.2118]
[1721201934196,14.83,161.0,160.95,6.213]
[1721201934397,14.83,160.99,160.95,6.213]
[1721201935003,14.83,160.99,160.93,15.4882]
[1721201935229,1.55309419,160.98,160.93,15.4882]
[1721201935437,14.83,160.97,160.93,15.4882]
[1721201935610,14.83,160.97,160.93,21.7019]
[1721201936109,14.83,160.98,160.94,6.2134]
[1721201937016,21.042,160.98,160.93,15.4882]
[1721201937321,1.55304191,160.99,160.93,15.4882]
[1721201937322,14.83,160.99,160.93,15.4882]
[1721201937636,14.83,160.99,160.97,6.212]
[1721201938008,14.83,160.99,160.93,15.4882]
[1721201938231,14.83,160.99,160.94,14.83]
[1721201938437,14.83,160.99,160.95,51.2127]
[1721201938634,14.83,160.98,160.96,6.2126]
[1721201938937,14.83,160.99,160.96,6.2126]
[1721201939136,14.83,160.98,160.94,6.2131]
[1721201939332,14.83,160.98,160.95,45.0]
[1721201939541,14.83,160.99,160.94,59.83]
[1721201939734,14.83,160.99,160.95,6.213]
[1721201940613,14.83,160.99,160.94,51.2134]
[1721201940806,14.83,160.99,160.95,6.213]
[1721201941036,14.83,160.99,160.96,6.2126]
[1721201941225,14.83,161.0,160.97,6.2122]
[1721201941413,14.83,161.0,160.95,6.2127]
[1721201941939,1.55285671,161.03,160.97,6.2122]
[1721201942116,6.2108,161.01,160.95,21.0427]
[1721201942322,14.83,161.0,160.96,51.2126]
[1721201942534,6.2107,161.02,160.96,66.0426]
[1721201942535,14.83,161.01,160.96,66.0426]
[1721201942735,1.55269061,161.06,160.97,14.83]
[1721201943040,6.2097,161.04,160.98,45.0]
[1721201943217,14.83,161.03,160.99,6.2114]
[1721201943425,14.83,161.03,160.98,59.83]
[1721201943426,21.0402,161.03,160.98,45.0]
[1721201943625,14.83,161.02,160.98,45.0]
[1721201945215,21.0404,161.02,160.97,6.212]
[1721201945615,21.0404,161.02,160.98,45.0]
[1721201945845,21.0404,161.02,160.94,10.17]
[1721201946028,6.21,161.04,160.98,14.83]
[1721201946349,14.83,161.02,160.97,21.0422]
[1721201946552,14.83,161.01,160.98,45.0]
[1721201946736,14.83,161.01,160.96,21.0426]
[1721201947046,14.83,161.0,160.95,66.043]
[1721201947260,14.83,160.99,160.96,20.0]
[1721201948139,21.0412,161.0,160.96,20.0]
[1721201948331,6.2117,160.99,160.96,20.0]
[1721201948550,14.83,161.0,160.96,20.0]
[1721201948733,7.76316996,161.03,160.97,16.07220335]
[1721201948945,21.0404,161.02,160.97,21.0423]
[1721201949131,22.59364559,161.01,160.96,26.2126]
[1721201949329,21.0409,161.01,160.96,26.2126]
[1721201949536,21.0409,161.01,160.97,1.24226139]
[1721201949939,14.83,161.01,160.97,1.24226139]
[1721201950960,22.59362266,161.01,160.97,1.24226139]
[1721201951139,21.0408,161.01,160.97,1.24226139]
[1721201951641,14.83,160.98,160.89,16.0311]
[1721201951843,14.83,160.94,160.9,6.2149]
[1721201952044,14.83,160.95,160.91,6.2146]
[1721201952560,7.76593831,160.97,160.91,6.2146]
[1721201952861,6.2126,160.97,160.91,6.2146]
[1721201953055,14.83,160.95,160.91,6.2146]
[1721201953535,6.2115,160.99,160.89,16.0311]
[1721201953739,14.83,160.98,160.92,14.83]
[1721201953958,14.83,160.98,160.95,6.2129]
[1721201954131,7.76453595,161.0,160.93,21.0435]
[1721201954330,14.83,160.98,160.94,45.0]
[1721201954556,14.83,160.97,160.94,45.0]
[1721201954746,14.83,160.98,160.93,6.2135]
[1721201955453,14.83,160.98,160.94,6.2134]
[1721201955775,16.38297663,161.0,160.95,21.0429]
[1721201955941,14.83,160.99,160.95,0.61913435]
[1721201956266,14.83,160.99,160.94,21.0432]
[1721201956633,14.83,160.99,160.94,14.83]
[1721201956854,14.83,160.98,160.92,14.83]
[1721201957068,14.83,160.98,160.93,65.0]
[1721201957269,21.042,160.98,160.93,65.0]